bitfinex/quotes_ETHUSD_20240731
["timestamp","ask_amount","ask_price","bid_price","bid_amount"]
[1722428085198,7.11425,3327.5,3327.4,0.07473941]
[1722428085379,7.11425,3327.5,3327.1,2.3593]
[1722428085600,7.11425,3327.5,3327.2,0.07450084]
[1722428085754,3.00543,3327.3,3327.1,2.3593]
[1722428085951,3.00543,3327.3,3327.2,0.07450084]
[1722428086379,3.00543,3327.3,3327.1,2.59523]
[1722428086568,3.00543,3327.3,3327.2,0.07450084]
[1722428086964,3.00543,3327.3,3327.1,2.59523]
[1722428087175,3.00543,3327.3,3327.2,0.07450084]
[1722428087498,3.00543,3327.3,3327.1,2.59523]
[1722428087700,3.00543,3327.3,3327.2,0.07450084]
[1722428088187,3.00543,3327.3,3327.1,2.59523]
[1722428088501,3.00543,3327.3,3327.2,0.33402384]
[1722428090868,3.00543,3327.3,3327.2,0.07450084]
[1722428091065,3.00543,3327.3,3326.8,37.6724]
[1722428091317,3.00571,3327.0,3326.8,2.6724]
[1722428091468,1.109,3327.3,3326.8,2.6724]
[1722428091669,3.00562,3327.1,3326.8,2.6724]
[1722428091913,3.00562,3327.1,3326.8,2.93964]
[1722428095100,3.00562,3327.1,3326.8,37.93964]
[1722428096119,3.00557,3327.2,3326.8,37.93964]
[1722428098330,3.00557,3327.2,3326.8,2.93964]
[1722428098879,3.00557,3327.2,3326.9,35.0]
[1722428099782,3.00562,3327.1,3326.9,35.0]
[1722428100586,3.00535,3327.4,3326.9,38.04901288]
[1722428100788,4.11435,3327.4,3326.9,38.04901288]
[1722428101720,4.11435,3327.4,3327.0,0.07448127]
[1722428102110,4.11435,3327.4,3326.8,2.93964]
[1722428102392,4.11435,3327.4,3327.1,0.07448127]
[1722428102592,4.11435,3327.4,3326.9,35.293964]
[1722428102796,4.11435,3327.4,3326.9,35.36844527]
[1722428103112,4.11435,3327.4,3327.0,0.07448127]
[1722428103608,3.0,3327.5,3327.0,2.366]
[1722428103834,3.0,3327.5,3326.9,35.293964]
[1722428103835,5.20738687,3328.2,3327.4,1.109]
[1722428103992,2.20274687,3328.5,3327.7,3.00507]
[1722428104305,1.109,3328.6,3327.9,2.366]
[1722428104652,5.60575474,3329.2,3327.9,5.37089]
[1722428104653,2.20274687,3328.9,3327.9,5.37089]
[1722428104796,4.11327,3328.6,3328.0,0.07409024]
[1722428105138,4.11327,3328.6,3328.1,0.24400902]
[1722428105139,1.109,3328.6,3328.1,0.24400902]
[1722428105694,1.109,3328.6,3328.2,0.07409024]
[1722428106032,1.109,3328.8,3328.2,0.07409024]
[1722428107057,4.11308,3328.8,3328.2,0.07409024]
[1722428107222,1.109,3328.8,3328.2,0.07409024]
[1722428107822,2.20125886,3329.6,3328.4,1.109]
[1722428108069,4.11251,3329.5,3328.6,3.00426]
[1722428108258,4.11266,3329.3,3328.5,2.88987294]
[1722428108427,3.00387,3329.1,3328.7,0.07321871]
[1722428108624,3.00396,3329.0,3328.6,0.07321089]
[1722428108823,3.0041,3328.8,3328.6,0.28894509]
[1722428109030,3.0041,3328.8,3328.7,0.07321089]
[1722428109450,3.00408,3328.8,3328.7,0.07321089]
[1722428109656,6.00816,3328.8,3328.7,0.07321089]
[1722428109948,6.00816,3328.8,3328.2,2.4124]
[1722428109949,3.00408,3328.8,3328.2,2.4124]
[1722428110153,3.00418,3328.7,3328.3,0.24124]
[1722428110350,3.00408,3328.8,3328.3,0.31174874]
[1722428111127,3.00424,3328.7,3328.3,0.31174874]
[1722428111319,3.00427,3328.6,3328.3,0.31174874]
[1722428111665,3.00427,3328.6,3328.3,0.24124]
[1722428112013,1.109,3328.7,3328.2,2.4124]
[1722428112014,3.00441,3328.5,3328.2,2.4124]
[1722428112213,4.11324,3328.7,3328.3,0.07050874]
[1722428112449,1.109,3328.7,3328.2,2.4124]
[1722428112621,3.00412,3328.8,3328.2,2.4124]
[1722428112829,3.00392,3329.0,3328.3,0.07050874]
[1722428113016,3.0,3328.9,3328.3,0.61926961]
[1722428114692,1.109,3329.1,3328.3,3.62378961]
[1722428114693,7.11283,3329.1,3328.3,3.62378961]
[1722428114814,3.00371,3329.3,3328.4,6.46878]
[1722428115133,0.0168963,3329.4,3328.6,4.11321]
[1722428115332,0.0168963,3329.4,3328.7,2.41547306]
[1722428115575,0.0168963,3329.4,3328.8,4.82601957]
[1722428115783,0.0168963,3329.4,3328.9,3.00398]
[1722428115975,0.0168963,3329.4,3328.8,4.89652831]
[1722428115976,0.0168963,3329.4,3329.3,2.473]
[1722428116124,0.0168963,3329.4,3329.3,5.5366919]
[1722428116322,0.0168963,3329.4,3329.3,2.60357064]
[1722428116537,0.0168963,3329.4,3329.3,3.2151318]
[1722428117716,0.0168963,3329.4,3329.3,0.7421318]
[1722428117920,0.0168963,3329.4,3329.3,0.07050874]
[1722428118326,0.0168963,3329.4,3329.2,2.422]
[1722428118529,0.0168963,3329.4,3329.3,0.07050874]
[1722428118841,0.0168963,3329.4,3329.2,2.422]
[1722428119047,0.0168963,3329.4,3329.3,0.07050874]
[1722428119235,0.0168963,3329.4,3329.3,0.24925087]
[1722428119440,0.0168963,3329.4,3329.3,0.31975961]
[1722428120772,0.0168963,3329.4,3329.3,3.32338961]
[1722428121076,0.0168963,3329.4,3329.3,3.38345093]
[1722428122925,0.0168963,3329.4,3329.3,8.82768093]
[1722428123157,0.0168963,3329.4,3329.3,11.83131093]
[1722428123344,0.0168963,3329.4,3329.3,11.77124961]
[1722428123544,0.0168963,3329.4,3329.3,8.76761961]
[1722428124205,0.0168963,3329.4,3329.3,11.77124961]
[1722428124373,0.0168963,3329.4,3329.3,8.76761961]
[1722428124577,0.0168963,3329.4,3329.3,9.87661961]
[1722428126472,0.0168963,3329.4,3329.3,12.88024961]
[1722428128459,0.0168963,3329.4,3329.3,9.87661961]
[1722428131323,0.0168963,3329.4,3329.3,12.88024961]
[1722428131576,0.0168963,3329.4,3329.3,9.87661961]
[1722428131867,0.0168963,3329.4,3329.3,9.91195633]
[1722428132627,0.0168963,3329.4,3329.3,44.91195633]
[1722428143652,0.0168963,3329.4,3329.3,47.91558633]
[1722428143871,0.0168963,3329.4,3329.3,44.91195633]
[1722428144024,0.0168963,3329.4,3329.3,55.96921633]
[1722428145057,0.0168963,3329.4,3329.3,56.27051633]
[1722428145312,3.00171,3331.5,3330.2,2.3726]
[1722428145554,2.46,3331.6,3330.6,3.00243]
[1722428145555,3.00175,3331.4,3330.6,3.00243]
[1722428145973,3.00175,3331.4,3330.7,0.16172757]
[1722428146185,2.46,3331.6,3330.7,0.16172757]
[1722428146186,2.46,3331.6,3330.8,35.0]
[1722428146776,3.00199,3331.2,3330.9,0.10169412]
[1722428147076,3.00206,3331.1,3330.9,0.10169412]
[1722428147275,3.00206,3331.1,3330.2,2.3726]
[1722428147576,3.00188,3331.3,3330.5,3.00254]
[1722428147778,3.00202,3331.1,3330.3,0.63923712]
[1722428148077,3.00206,3331.1,3330.4,0.10169412]
[1722428148273,3.00206,3331.1,3330.6,35.0]
[1722428148572,3.00186,3331.3,3330.6,35.0]
[1722428148776,3.00186,3331.3,3330.7,0.4662703]
[1722428149925,3.00192,3331.2,3330.7,0.4662703]
[1722428150743,2.46,3331.6,3330.7,0.4662703]
[1722428150947,3.00206,3331.1,3330.7,0.4662703]
[1722428151182,2.3031,3331.0,3330.7,0.4662703]
[1722428152231,5.3052,3331.0,3330.7,0.4662703]
[1722428152470,3.00219,3330.9,3330.7,0.4662703]
[1722428152692,3.00228,3330.8,3330.7,0.10169412]
[1722428153176,5.30528,3331.0,3329.9,3.00303]
[1722428153386,5.30528,3331.0,3330.1,2.4726]
[1722428153592,5.30528,3331.0,3330.2,3.00281]
[1722428153802,3.0022,3330.9,3330.3,0.547541]
[1722428154006,2.3031,3331.0,3330.3,0.10169412]
[1722428154007,3.00242,3330.7,3330.3,0.10169412]
[1722428154346,3.00255,3330.5,3329.6,3.00336]
[1722428154682,5.40259,3330.4,3329.7,35.0]
[1722428154851,2.3999,3330.4,3329.7,35.0]
[1722428155056,3.00254,3330.6,3329.9,3.00308]
[1722428155256,3.00246,3330.6,3329.8,3.04901288]
[1722428155498,5.40278,3330.7,3329.7,3.00318]
[1722428155499,2.4004,3330.7,3329.7,3.00318]
[1722428155651,2.4004,3330.7,3329.9,38.00308]
[1722428155857,3.00246,3330.6,3329.9,35.0]
[1722428156273,3.00258,3330.5,3329.9,35.0]
[1722428156497,2.4004,3330.7,3329.9,38.00308]
[1722428156693,3.00246,3330.6,3330.0,3.04901288]
[1722428156900,6.00499,3330.6,3330.0,3.04901288]
[1722428157097,3.00246,3330.6,3330.0,3.04901288]
[1722428157801,3.00269,3330.4,3329.9,35.0]
[1722428158452,3.00268,3330.4,3329.9,35.0]
[1722428159100,3.00283,3330.2,3329.9,35.0]
[1722428160632,3.00291,3330.1,3329.9,35.0]
[1722428160786,3.003,3330.0,3329.9,35.0]
[1722428160986,6.006,3330.0,3329.9,35.0]
[1722428161683,6.006,3330.0,3329.9,0.09516121]
[1722428161884,3.00319,3329.8,3329.3,0.2]
[1722428162082,3.00319,3329.8,3329.4,0.09529307]
[1722428162336,3.00334,3329.7,3329.5,35.0]
[1722428162511,2.4642,3330.1,3329.5,35.0]
[1722428162512,6.00672,3329.6,3329.5,35.0]
[1722428163038,6.00672,3329.6,3329.5,0.09215866]
[1722428163387,6.00672,3329.6,3329.3,0.4]
[1722428163388,3.00345,3329.5,3329.4,35.0]
[1722428163787,3.00354,3329.4,3329.3,0.4]
[1722428163989,6.00708,3329.4,3329.3,0.4]
[1722428164436,3.00354,3329.4,3329.3,0.4]
[1722428164938,6.00708,3329.4,3329.3,0.4]
[1722428165105,6.00708,3329.4,3329.3,35.4]
[1722428165106,3.00354,3329.4,3329.3,35.4]
[1722428165848,6.00708,3329.4,3329.3,35.4]
[1722428166207,9.00708,3329.4,3329.3,35.6]
[1722428166416,10.66100333,3329.4,3329.3,0.6]
[1722428166741,13.66454333,3329.4,3329.3,0.6]
[1722428167260,16.07384333,3329.4,3329.3,0.6]
[1722428167470,22.28038333,3329.4,3329.3,0.6]
[1722428167992,19.27684333,3329.4,3329.3,0.6]
[1722428168432,22.28038333,3329.4,3329.3,0.6]
[1722428168640,19.27684333,3329.4,3329.3,0.6]
[1722428169756,21.47699718,3329.4,3329.3,0.6]
[1722428170190,24.48053718,3329.4,3329.3,0.6]
[1722428170393,22.28038333,3329.4,3329.3,0.6]
[1722428170622,24.48039417,3329.4,3329.3,0.6]
[1722428170824,22.28038333,3329.4,3329.3,0.6]
[1722428171072,21.47603717,3329.4,3329.3,0.6]
[1722428171607,19.27684333,3329.4,3329.3,0.6]
[1722428174878,14.96992,3329.4,3329.3,0.6]
[1722428176165,8.96638,3329.4,3329.3,0.6]
[1722428176370,8.41638,3329.4,3329.3,0.6]
[1722428176671,6.00708,3329.4,3329.3,0.6]
[1722428176829,6.00708,3329.4,3329.3,35.6]
[1722428177027,6.00708,3329.4,3329.3,0.6]
[1722428177246,6.00708,3329.4,3329.3,0.68698067]
[1722428177247,3.00354,3329.4,3329.3,0.68698067]
[1722428177420,3.00354,3329.4,3329.3,0.6]
[1722428178080,6.00354,3329.4,3329.3,0.6]
[1722428178226,3.00311,3329.9,3329.3,0.68698067]
[1722428178592,3.00311,3329.9,3329.4,35.0]
[1722428178593,3.00332,3329.7,3329.4,35.0]
[1722428178777,3.00316,3329.9,3329.4,38.04901288]
[1722428178920,3.00316,3329.9,3329.5,0.08698067]
[1722428179282,3.00296,3330.1,3329.5,0.14704948]
[1722428179568,3.00275,3330.3,3329.6,35.0]
[1722428179786,3.00283,3330.2,3329.7,3.04901288]
[1722428179925,3.00293,3330.1,3329.7,3.04901288]
[1722428180283,3.00275,3330.3,3329.7,3.04901288]
[1722428180284,3.00276,3330.3,3329.8,0.08698067]
[1722428180424,3.00256,3330.5,3329.9,35.0]
[1722428180874,3.00256,3330.5,3330.0,0.08698067]
[1722428181236,6.00485,3330.7,3330.0,0.06005477]
[1722428181583,3.00241,3330.7,3330.1,0.08698067]
[1722428181728,3.00241,3330.7,3330.2,0.06004994]
[1722428181729,3.0,3330.6,3330.2,0.06004994]
[1722428182126,3.0,3330.6,3330.3,0.08698067]
[1722428182442,3.0,3330.6,3330.2,0.06004994]
[1722428182646,3.0,3330.6,3330.4,0.08698067]
[1722428182944,3.0,3330.6,3330.5,0.08698067]
[1722428183136,3.0,3330.6,3330.2,0.06004994]
[1722428183336,3.0,3330.6,3330.3,0.39788695]
[1722428183682,3.0,3330.6,3330.3,0.08698067]
[1722428184088,3.0,3330.6,3329.9,35.0]
[1722428184241,3.0,3330.6,3330.4,0.08698067]
[1722428184442,3.0,3330.6,3329.9,35.0]
[1722428184645,3.0,3330.6,3330.5,0.08698067]
[1722428184878,3.0,3330.6,3329.9,35.0]
[1722428185188,3.0,3330.6,3330.0,3.04901288]
[1722428185385,3.0,3330.6,3330.0,3.13599355]
[1722428185561,0.31421246,3331.2,3330.1,2.4648]
[1722428185754,3.00225,3330.9,3330.1,2.4648]
[1722428186061,3.00205,3331.1,3330.1,2.4648]
[1722428186251,3.00205,3331.1,3330.2,0.50361095]
[1722428186459,3.00168,3331.5,3330.2,0.50361095]
[1722428186460,3.0022,3330.9,3330.2,0.44356849]
[1722428186895,3.00147,3331.7,3330.2,0.44356849]
[1722428187102,3.00242,3330.7,3330.2,0.44356849]
[1722428187310,3.00269,3330.4,3330.2,0.44356849]
[1722428187484,3.00269,3330.4,3330.3,0.29083685]
[1722428187676,2.3187,3331.2,3329.4,2.653]
[1722428187677,3.00286,3330.2,3329.7,2.4319]
[1722428187854,3.00288,3330.2,3329.8,0.08603572]
[1722428188059,3.00288,3330.2,3329.7,2.4319]
[1722428188283,3.00288,3330.2,3329.9,35.0]
[1722428188802,3.003,3330.0,3329.9,35.0]
[1722428189384,3.00287,3330.2,3329.9,38.04901288]
[1722428189600,3.00277,3330.3,3329.9,38.04901288]
[1722428189601,3.00291,3330.1,3329.9,38.04901288]
[1722428189791,3.003,3330.0,3329.9,38.04901288]
[1722428190301,3.00291,3330.1,3329.9,38.04901288]
[1722428190488,3.00291,3330.1,3330.0,0.35658782]
[1722428190684,6.00587,3330.1,3330.0,0.35658782]
[1722428191076,3.00291,3330.1,3330.0,0.35658782]
[1722428191473,3.00291,3330.1,3330.0,0.44262354]
[1722428192202,6.00582,3330.1,3330.0,0.08603572]
[1722428192361,9.00878,3330.1,3330.0,0.08603572]
[1722428192560,3.00342,3329.6,3329.4,35.0]
[1722428192800,6.00686,3329.6,3329.5,0.08610126]
[1722428192967,6.00686,3329.6,3329.5,3.13511414]
[1722428193162,3.00342,3329.6,3329.5,3.13511414]
[1722428193363,3.00323,3329.8,3329.5,3.13511414]
[1722428193785,3.00332,3329.7,3329.5,3.13511414]
[1722428194102,3.00332,3329.7,3329.5,0.08610126]
[1722428194274,6.00654,3329.7,3329.6,35.0]
[1722428194474,3.00327,3329.7,3329.6,0.08379165]
[1722428194671,3.00354,3329.4,3329.3,0.6]
[1722428195044,6.00708,3329.4,3329.3,35.68379165]
[1722428195308,6.00708,3329.4,3329.3,38.73280453]
[1722428196180,3.00354,3329.4,3329.3,38.73280453]
[1722428196611,3.0034,3329.6,3329.3,38.73280453]
[1722428196760,3.00347,3329.5,3329.3,38.73280453]
[1722428197413,3.00354,3329.4,3329.3,38.73280453]
[1722428197797,6.00708,3329.4,3329.3,35.68379165]
[1722428198205,6.00708,3329.4,3329.3,0.68379165]
[1722428198500,6.00708,3329.4,3329.3,0.6]
[1722428198801,6.00708,3329.4,3329.3,35.6]
[1722428198802,12.01062,3329.4,3329.3,35.6]
[1722428199106,12.01062,3329.4,3329.3,0.67977974]
[1722428199409,12.01062,3329.4,3329.3,0.6]
[1722428199410,13.211682,3329.4,3329.3,0.6]
[1722428199613,16.765222,3329.4,3329.3,0.6]
[1722428200110,21.96752808,3329.4,3329.3,0.6]
[1722428200407,6.0087,3328.5,3328.4,35.0]
[1722428200895,6.0087,3328.5,3328.4,35.07588074]
[1722428202817,6.0087,3328.5,3328.4,0.07588074]
[1722428203170,3.00474,3328.1,3327.7,2.3943]
[1722428203408,3.00474,3328.1,3327.8,0.23943]
[1722428203712,3.00474,3328.1,3327.9,35.0]
[1722428203911,6.00954,3328.1,3327.9,35.0]
[1722428204204,3.0048,3328.0,3327.9,35.0]
[1722428204409,6.0096,3328.0,3327.9,35.0]
[1722428204939,6.0096,3328.0,3326.6,0.3013]
[1722428204940,3.00549,3327.3,3326.5,5.44359]
[1722428205110,3.00528,3327.5,3326.6,3.550419]
[1722428205270,3.0054,3327.4,3326.7,35.0]
[1722428205665,3.0054,3327.4,3326.6,3.550419]
[1722428206286,3.00528,3327.5,3327.3,35.0]
[1722428206501,3.00528,3327.5,3327.4,0.07506913]
[1722428206724,6.01062,3327.5,3327.4,0.07506913]
[1722428206915,3.00558,3327.2,3326.6,0.544359]
[1722428207123,3.00558,3327.2,3327.1,35.0]
[1722428207584,3.00558,3327.2,3327.1,35.07506913]
[1722428208443,6.01117,3327.2,3327.1,35.07506913]
[1722428208836,9.01676,3327.2,3327.1,35.07506913]
[1722428209858,9.01676,3327.2,3327.1,0.07506913]
[1722428210065,9.918436,3327.2,3327.1,0.07506913]
[1722428210248,3.00619,3326.5,3326.1,35.0]
[1722428210444,3.00601,3326.7,3326.1,35.0]
[1722428210650,3.00601,3326.7,3326.2,0.0752239]
[1722428211052,3.00601,3326.7,3326.0,2.4481]
[1722428211376,3.00601,3326.7,3326.3,35.0]
[1722428211526,3.00601,3326.7,3326.4,0.0752239]
[1722428212292,3.00584,3326.9,3326.4,0.0752239]
[1722428212293,6.01172,3326.9,3326.4,0.0752239]
[1722428212492,3.00585,3326.9,3326.4,0.0752239]
[1722428212658,3.00603,3326.7,3326.4,0.0752239]
[1722428212851,6.01209,3326.7,3326.4,0.0752239]
[1722428213057,3.00603,3326.7,3326.4,0.0752239]
[1722428213586,3.00616,3326.5,3326.4,0.0752239]
[1722428214071,3.00606,3326.7,3325.8,35.06012321]
[1722428214245,3.00606,3326.7,3325.8,35.0]
[1722428214489,3.00608,3326.6,3325.9,0.07481793]
[1722428214794,3.00608,3326.6,3326.0,3.04901288]
[1722428214994,3.00616,3326.5,3325.9,0.07481793]
[1722428215165,3.00616,3326.5,3326.1,35.07583824]
[1722428216309,3.300544,3327.2,3326.1,35.07583824]
[1722428216610,3.00643,3326.2,3326.1,35.07583824]
[1722428216747,3.00627,3326.4,3326.1,35.07583824]
[1722428217147,6.0126,3326.4,3326.1,35.07583824]
[1722428217380,3.00635,3326.3,3326.1,35.07583824]
[1722428218287,3.00643,3326.2,3326.1,35.07583824]
[1722428218698,6.01286,3326.2,3326.1,35.07583824]
[1722428219552,3.00643,3326.2,3326.1,35.07583824]
[1722428221153,8.3866,3326.7,3326.1,35.07583824]
[1722428221154,3.0063,3326.4,3326.1,35.07583824]
[1722428221431,3.00635,3326.3,3326.1,35.07583824]
[1722428221709,6.01286,3326.2,3326.1,35.07583824]
[1722428223091,7.140184,3326.2,3326.1,35.07583824]
[1722428224852,6.01286,3326.2,3326.1,35.07583824]
[1722428225207,6.01286,3326.2,3326.1,34.07583824]
[1722428225812,9.01929,3326.2,3326.1,34.07583824]
[1722428226258,9.01929,3326.2,3326.1,0.07583824]
[1722428226755,3.00697,3325.7,3325.3,35.0]
[1722428226952,3.00697,3325.7,3325.3,38.04901288]
[1722428227155,3.00697,3325.7,3325.4,0.07544471]
[1722428227156,3.00712,3325.5,3325.4,0.07544471]
[1722428227732,3.00712,3325.5,3325.4,35.0753228]
[1722428228357,6.01424,3325.5,3325.4,35.0753228]
[1722428228518,6.01424,3325.5,3325.4,0.0753228]
[1722428228881,3.00744,3325.1,3324.5,2.49]
[1722428229189,3.00744,3325.1,3324.6,35.0751103]
[1722428229734,3.00752,3325.0,3324.6,35.0751103]
[1722428229931,3.00744,3325.1,3324.6,35.0751103]
[1722428230353,3.00762,3324.9,3324.6,35.0751103]
[1722428230882,3.00746,3325.1,3324.6,35.0751103]
[1722428231089,3.00761,3324.9,3324.6,35.0751103]
[1722428231597,3.00779,3324.7,3324.6,35.0751103]
[1722428233891,6.01558,3324.7,3324.6,35.0751103]
[1722428234642,6.01558,3324.7,3324.6,0.0751103]
[1722428235057,3.0079,3324.6,3324.1,2.2662]
[1722428235289,3.0079,3324.6,3323.8,3.00853]
[1722428235290,6.01558,3324.7,3324.6,0.07545996]
[1722428235495,6.01584,3324.6,3324.2,35.0]
[1722428235644,3.00802,3324.5,3324.2,35.0]
[1722428235848,3.00815,3324.3,3324.2,35.0]
[1722428236801,3.00815,3324.3,3324.2,35.07547149]
[1722428237318,6.0163,3324.3,3324.2,35.07547149]
[1722428237691,3.00815,3324.3,3324.2,35.07547149]
[1722428238796,3.00805,3324.5,3324.2,35.07547149]
[1722428238949,3.0,3324.4,3324.2,35.07547149]
[1722428239156,6.00807,3324.4,3324.2,35.07547149]
[1722428239467,3.0,3324.4,3324.2,35.07547149]
[1722428239783,6.00797,3324.5,3324.2,35.07547149]
[1722428241083,3.00815,3324.3,3324.2,35.07547149]
[1722428242702,6.00803,3324.5,3324.2,35.07547149]
[1722428243406,3.00815,3324.3,3324.2,35.07547149]
[1722428243979,6.917918,3324.3,3324.2,0.07547149]
[1722428244266,3.00826,3324.2,3323.5,2.4656]
[1722428244480,3.00826,3324.2,3323.6,35.0]
[1722428244674,3.00838,3324.1,3323.6,35.0]
[1722428244852,3.00847,3324.0,3323.6,35.0]
[1722428245404,6.01696,3324.0,3323.6,35.0]
[1722428245781,3.00847,3324.0,3323.6,35.0]
[1722428245974,3.00851,3323.9,3323.6,35.0]
[1722428247257,3.00842,3324.0,3323.6,35.0]
[1722428247658,3.00861,3323.8,3323.6,35.0]
[1722428248458,2.3269,3323.9,3322.8,2.4814]
[1722428248459,3.00889,3323.5,3322.8,2.4814]
[1722428248664,3.00889,3323.5,3323.0,4.0]
[1722428248909,3.00889,3323.5,3323.1,35.0]
[1722428249271,2.3269,3323.9,3323.1,35.0]
[1722428249272,6.01828,3323.2,3323.1,35.0]
[1722428249474,3.00935,3323.0,3322.3,2.4814]
[1722428249656,3.00935,3323.0,3322.4,4.24814]
[1722428249657,3.00942,3322.9,3322.4,4.24814]
[1722428249860,3.00963,3322.7,3322.5,35.0]
[1722428250092,3.00969,3322.6,3322.5,35.0]
[1722428251426,2.653,3322.7,3321.9,8.0]
[1722428251726,3.01013,3322.2,3321.9,8.0]
[1722428251927,3.01013,3322.2,3322.0,35.0]
[1722428252079,3.01014,3322.1,3322.0,35.0]
[1722428254177,6.321294,3322.1,3322.0,35.0]
[1722428254328,6.321294,3322.1,3321.9,8.0]
[1722428254329,6.02046,3322.0,3321.9,8.0]
[1722428254829,9.57046,3322.0,3321.9,8.0]
[1722428257097,14.93819,3322.0,3321.9,8.0]
[1722428257428,16.4621104,3322.0,3321.9,8.0]
[1722428257597,19.4723404,3322.0,3321.9,8.0]
[1722428257797,19.4723404,3322.0,3321.9,6.49484]
[1722428258001,19.4723404,3322.0,3320.3,35.0]
[1722428258002,3.0115,3320.6,3320.3,35.0]
[1722428258202,3.01141,3320.7,3320.3,35.0]
[1722428258503,2.4836,3321.1,3319.5,3.01246]
[1722428258504,3.0116,3320.5,3319.5,3.01246]
[1722428258702,3.01177,3320.3,3319.6,0.54416621]
[1722428258978,3.01177,3320.3,3319.7,35.0]
[1722428259317,3.01143,3320.7,3319.7,35.0]
[1722428259516,5.4836,3321.1,3319.7,35.0]
[1722428259517,6.01108,3321.1,3320.1,3.01189]
[1722428259737,3.56116,3321.0,3320.2,0.301189]
[1722428259912,6.56116,3321.0,3320.2,0.301189]
[1722428260269,3.55,3321.0,3320.3,35.0]
[1722428260600,3.01102,3321.2,3320.3,38.01175]
[1722428260819,3.55,3321.1,3320.3,35.0]
[1722428261044,3.01124,3320.9,3320.3,35.0]
[1722428261548,3.01133,3320.8,3320.3,35.0]
[1722428261714,3.01124,3320.9,3320.3,35.0]
[1722428261921,0.3140569,3325.0,3320.3,35.0]
[1722428261922,3.01089,3321.3,3320.3,35.0]
[1722428262232,3.55,3321.2,3320.5,3.01153]
[1722428262416,6.56083,3321.4,3320.6,3.0115]
[1722428262617,3.01088,3321.3,3320.5,2.86143449]
[1722428262851,3.55,3321.2,3320.5,2.86143449]
[1722428263052,6.56096,3321.2,3320.5,2.86143449]
[1722428264412,3.01106,3321.1,3320.5,2.86143449]
[1722428264606,3.01114,3321.0,3320.3,35.0]
[1722428264803,3.01124,3320.9,3320.3,35.0]
[1722428265170,3.01114,3321.0,3320.3,35.0]
[1722428265549,3.01149,3320.7,3319.7,3.01225]
[1722428265746,3.301149,3320.6,3319.5,3.01242]
[1722428265950,3.01198,3320.1,3319.4,2.6179021]
[1722428266225,3.01183,3320.3,3319.8,35.0]
[1722428266349,0.55,3320.2,3319.8,35.0]
[1722428266562,3.01199,3320.1,3319.8,35.0]
[1722428266782,3.01141,3320.7,3319.9,6.13975503]
[1722428266984,0.55,3320.9,3319.9,3.12768503]
[1722428267170,3.01123,3320.9,3320.1,3.01194]
[1722428267364,3.0,3320.8,3320.5,3.01158]
[1722428267594,3.01072,3321.5,3320.5,3.01151]
[1722428267762,3.01077,3321.4,3320.6,0.07887256]
[1722428267962,3.01099,3321.2,3320.7,35.0]
[1722428268363,3.847019,3321.4,3320.8,0.07886485]
[1722428268579,3.0107,3321.5,3320.8,0.07886485]
[1722428268907,3.01054,3321.7,3320.8,3.09017485]
[1722428269124,3.01036,3321.9,3321.0,3.01108]
[1722428269617,3.01058,3321.7,3321.1,0.07859509]
[1722428269773,3.01077,3321.5,3320.7,35.0]
[1722428269977,3.01092,3321.3,3320.7,35.0]
[1722428270206,3.01096,3321.2,3320.8,0.07859509]
[1722428270524,3.01078,3321.4,3320.8,0.07859509]
[1722428270727,6.01045,3321.8,3320.8,0.13881856]
[1722428270878,3.0105,3321.7,3320.8,3.15004856]
[1722428271078,3.0,3321.6,3320.9,3.01115]
[1722428271291,3.0,3321.8,3321.1,3.01098]
[1722428271509,6.01032,3321.9,3321.1,3.01098]
[1722428271724,3.0,3321.9,3321.2,3.08951509]
[1722428271930,6.01033,3321.9,3321.2,0.07859509]
[1722428272281,3.0,3321.9,3321.4,3.01076]
[1722428272695,3.301014,3322.1,3321.5,3.01068]
[1722428273021,3.301014,3322.1,3321.5,35.07859509]
[1722428273022,6.311234,3322.1,3321.5,35.07859509]
[1722428273385,3.01024,3322.0,3321.5,35.07859509]
[1722428273581,6.01038,3321.9,3321.5,35.07859509]
[1722428273819,3.0105,3321.8,3321.5,35.07859509]
[1722428273994,3.01059,3321.6,3321.5,35.07859509]
[1722428274203,3.01042,3321.8,3321.5,35.07859509]
[1722428274525,3.0,3321.9,3321.5,35.07859509]
[1722428275034,3.79914414,3321.9,3321.5,35.07859509]
[1722428275230,6.80950414,3321.9,3321.5,35.07859509]
[1722428275530,3.01059,3321.6,3321.5,35.07859509]
[1722428275755,3.01046,3321.8,3321.5,35.07859509]
[1722428276291,6.80949414,3321.9,3321.5,35.07859509]
[1722428277341,3.79914414,3321.9,3321.5,35.07859509]
[1722428277487,4.6801474,3322.0,3321.5,35.07859509]
[1722428277687,7.48,3322.2,3321.5,35.07859509]
[1722428277688,3.0,3322.1,3321.5,35.07859509]
[1722428277891,3.01024,3322.0,3321.5,35.07859509]
[1722428278092,3.0,3321.9,3321.5,35.07859509]
[1722428278839,6.01033,3321.9,3321.5,35.07859509]
[1722428279035,3.0,3321.9,3321.5,35.07859509]
[1722428279391,3.0,3322.1,3321.5,35.07859509]
[1722428279706,4.359249,3322.0,3321.5,35.07859509]
[1722428279921,3.0,3321.9,3321.5,35.07859509]
[1722428280620,1.349009,3322.0,3321.5,35.07859509]
[1722428280992,4.359249,3322.0,3321.5,35.07859509]
[1722428281314,3.0,3321.9,3321.5,35.07859509]
[1722428281522,3.7359249,3321.9,3321.5,35.07859509]
[1722428281732,0.7359249,3321.9,3321.5,35.07859509]
[1722428282300,3.00989,3322.4,3321.5,35.07859509]
[1722428282301,10.48969,3322.6,3321.7,3.01043]
[1722428282615,10.48969,3322.6,3321.8,3.01032]